Cogmind - Beta 16 @@@ ROGUE MODE // 2025.10.30 @ 22:40:04 Player: Scringis Result: Destroyed by G-47 Trooper with Particle Gun Performance ------------- Evolutions (1) 500 Regions Visited (2) 400 Robots Destroyed (5) 25 Value Destroyed (140) 140 Prototype IDs (0) 0 Alien Tech Used (0) 0 Bonus (0) 0 TOTAL SCORE: 1065 Bonus ------- None Cogmind --------- Core Integrity 0/400 Matter 272/300 Energy 78/100 System Corruption 5% Temperature Cool (9) Movement Core (50) Location -9/Materials Parts ------- > --- POWER (1) -------- (None) > --- PROPULSION (2) --- (None) > --- UTILITY (2) ------ (None) > --- WEAPON (4) ------- (None) > --- INVENTORY (5) ---- (None) Peak State ------------ > --- POWER ------------ Ion Engine > --- PROPULSION ------- Light Treads Light Treads > --- UTILITY ---------- Small Storage Unit Large Storage Unit > --- WEAPON ----------- Medium Laser Assault Rifle > --- INVENTORY -------- Ion Engine [Rating: 7] Favorites ----------- Power Ion Engine Engine Ion Engine Propulsion Light Treads Treads Light Treads Leg Aluminum Leg Utility Large Storage Unit Storage Large Storage Unit Protection Core Shielding Weapon Medium Laser Energy Gun Medium Laser Ballistic Gun Assault Rifle Build | -11 -10 -9 ------- Run | Yrd Mat Mat Slots Evolved 2 | . . 2 Power . | . . . Propulsion . | . . . Utility . | . . . Weapon 2 | . . 2 Parts Attached 14 | 4 3 7 Power 4 | 1 . 3 Engine 4 | 1 . 3 Core . | . . . Reactor . | . . . Propulsion 4 | 2 . 2 Treads 3 | 2 . 1 Leg 1 | . . 1 Wheel . | . . . Hover . | . . . Flight . | . . . Utility 3 | 1 1 1 Device . | . . . Storage 2 | 1 1 . Processor . | . . . Hackware . | . . . Protection 1 | . . 1 Artifact . | . . . Weapon 3 | . 2 1 Energy Gun 2 | . 1 1 Energy Cannon . | . . . Ballistic Gun 1 | . 1 . Ballistic Cannon . | . . . Launcher . | . . . Special Weapon . | . . . Impact Weapon . | . . . Slashing Weapon . | . . . Piercing Weapon . | . . . Special Melee Weapon . | . . . Unidentified Prototypes . | . . . Parts Lost 10 | . . 10 Power 3 | . . 3 Propulsion 4 | . . 4 Utility . | . . . Weapon 3 | . . 3 Highest Loss Streak 9 | . . 9 To Critical Strikes 1 | . . 1 Average Backups 1 | . 1 1 Power . | . 1 . Propulsion . | . . . Utility . | . . . Weapon . | . . . Tool/Special . | . . . Unused Backups . | . . . Power . | . . . Propulsion . | . . . Utility . | . . . Weapon . | . . . Tool/Special . | . . . Average Slot Usage (%) 60 | . 72 46 Engine 11 | . 14 8 Treads 20 | . 28 12 Storage 12 | . 14 11 Energy Gun 8 | . 7 9 Ballistic Gun 5 | . 7 2 Peak Build Rating 7 | 4 7 6 Average Rating 4 | 3 5 4 On Entrance 3 | . 4 6 Avg Prop Armor Cover (%) . | . . . Naked Turns 2 | . . 2 Heaviest Build 30 | 10 29 30 Greatest Support 40 | 40 40 40 Greatest Overweight (x) 9 | . . 9 Average Overweight (x) . | . . . Largest Inventory Capacity 15 | 8 15 15 Average Capacity 11 | 7 10 14 Most Carried 3 | 2 3 2 Average Carried 1 | . 1 1 Final Capacity 15 | 8 15 5 Final Carried 2 | 2 2 . Class Distribution -------------------- 100% | Mutant Dominant Class ---------------- Mutant | -10/Materials Mutant | -9/Materials Resources | -11 -10 -9 ----------- Run | Yrd Mat Mat Matter Collected 283 | 193 . 90 Remotely . | . . . Salvage Created 175 | . 41 134 Parts 9 | . 2 7 Haulers Intercepted 1 | . 1 . Recyclers Shooed . | . . . Parts Field Recycled . | . . . Retrieved Matter . | . . . Parts Self-Destructed . | . . . Prevented . | . . . Parts Restored . | . . . Kills | -11 -10 -9 ------- Run | Yrd Mat Mat Combat Hostiles Destroyed 4 | . . 4 Melee 1 | . . 1 Guns 3 | . . 3 Classes Destroyed 3 | . 1 2 Hauler 1 | . 1 . Grunt 3 | . . 3 Brawler 1 | . . 1 Best Kill Streak 3 | . 1 3 Combat Bots Only 3 | . . 3 Max Kills in Single Turn 1 | . 1 1 Gunslinging . | . . . Exploded . | . . . Melee 1 | . . 1 Uniques/NPCs Destroyed . | . . . Combat | -11 -10 -9 -------- Run | Yrd Mat Mat Hostile Shots Fired 160 | . 5 155 Missed 49 | . 2 47 Hits 111 | . 3 108 Melee 2 | . . 2 Projectile 109 | . 3 106 Critical Strikes 3 | . . 3 Actively Blocked 1 | . . 1 Damage Taken 1436 | . 27 1409 Core 411 | . 9 402 Absorbed by Shields . | . . . Redirected to Shielding 16 | . . 16 Core Remaining (%) 98 | 100 96 . Volleys Fired 33 | . 4 29 Largest 2 | . 2 2 Hottest 70 | . 70 70 Shots Fired 40 | . 8 32 Gun 40 | . 8 32 Cannon . | . . . Launcher . | . . . Special . | . . . Kinetic 7 | . 4 3 Thermal 33 | . 4 29 Explosive . | . . . Electromagnetic . | . . . Robot Hit Streak 17 | . 2 17 Robot Miss Streak 3 | . 3 2 Penetration Max . | . . . Secondary Targets . | . . . Shots Hit Robots 28 | . 3 25 Core Hits 12 | . 2 10 Critical Kills . | . . . Critical Parts Destroyed 1 | . 1 . Critical Strikes 3 | . 1 2 Burn 2 | . . 2 Destroy 1 | . 1 . Melee Attacks . | . . . Impact . | . . . Slashing . | . . . Piercing . | . . . Sneak Attacks . | . . . Combat Hostiles . | . . . Follow-up Attacks . | . . . Damage Inflicted 389 | . 39 350 Guns 380 | . 39 341 Cannons . | . . . Explosions . | . . . Melee . | . . . Ramming 9 | . . 9 Kinetic 49 | . 26 23 Thermal 331 | . 13 318 Explosive . | . . . Electromagnetic . | . . . Impact . | . . . Slashing . | . . . Piercing . | . . . Highest Corruption 5 | . . 5 Average Corruption 4 | . . 4 Corruption Purged . | . . . Corruption Blocked . | . . . Effects 3 | . . 3 Message Errors 1 | . . 1 Matter Fused 1 | . . 1 Heat Flow Errors 1 | . . 1 Overload Shots . | . . . Overflow Damage . | . . . Projectiles . | . . . Explosions . | . . . Melee . | . . . Knockbacks . | . . . Impact . | . . . Kinetic . | . . . Secondary . | . . . Self-Inflicted Damage . | . . . Shots . | . . . Rammed 4 | . . 4 Targets Rammed 5 | . . 5 Kicked . | . . . Crushed 1 | . . 1 Highest Temperature 283 | . 36 283 Average Temperature 88 | . 19 100 Received Heat Transfer 645 | . . 645 Siege Activations . | . . . Martial Activations . | . . . Shielding Activations . | . . . Robots Disrupted . | . . . Combat Hostiles . | . . . Robots Corrupted . | . . . Combat Hostiles . | . . . Parts Fried . | . . . Impact Corruptions . | . . . Robots Melted . | . . . Combat Hostiles . | . . . Parts Melted . | . . . Heat Transferred 1110 | . 37 1073 Parts Sabotaged . | . . . Parts Stolen . | . . . Parts Stripped . | . . . Power Chain Reactions . | . . . Alert | -11 -10 -9 ------- Run | Yrd Mat Mat Maximum Alert Level . | . . . Low Security (%) 100 | 100 100 100 Level 1 . | . . . Level 2 . | . . . Level 3 . | . . . Level 4 . | . . . Level 5 . | . . . High Security . | . . . Max Security . | . . . Peak Influence 50 | . 7 50 Initial . | . . . Average 4 | . . 9 Influence Increases 97 | . 7 90 Destroy 0b10 Robot/C 80 | . . 80 Destroy 0b10 Robot/NC 5 | . 5 . Destroy Leader 12 | . 2 10 Influence Decreases 97 | . 7 90 Time Decay 47 | . 7 40 Lost Part 50 | . . 50 Squads Dispatched 2 | . . 2 Investigation . | . . . Extermination . | . . . Reinforcement 2 | . . 2 Assault . | . . . Garrison . | . . . Intercept . | . . . Searches Triggered . | . . . Construction Impeded 1 | . . 1 Haulers Reinforced . | . . . Active Scanning Responses . | . . . Cargo Convoy Interrupts . | . . . Stealth | -11 -10 -9 --------- Run | Yrd Mat Mat Distress Signals . | . . . Communications Jammed . | . . . Distress Signals . | . . . Times Spotted 18 | . 6 12 Peak Tracking Total 6 | . 5 6 Tactical Retreats . | . . . Traps | -11 -10 -9 ------- Run | Yrd Mat Mat Traps Triggered . | . . . Indirectly . | . . . Trap Hack Attempts . | . . . Triggered . | . . . Disarmed . | . . . Reprogrammed . | . . . Reused . | . . . Traps Extracted . | . . . Installed . | . . . Triggered . | . . . Machines | -11 -10 -9 ---------- Run | Yrd Mat Mat Machines Disabled . | . . . Max in Single Turn . | . . . Machines Repaired . | . . . Machines Dismantled . | . . . Machines Sabotaged . | . . . Overloaded Fab Kills . | . . . Hacking | -11 -10 -9 --------- Run | Yrd Mat Mat Machines Accessed . | . . . Terminals . | . . . Fabricators . | . . . Repair Stations . | . . . Recycling Units . | . . . Scanalyzers . | . . . Garrison Access . | . . . Total Hacks . | . . . Successful . | . . . Failed . | . . . Catastrophic . | . . . Database Lockouts . | . . . Manual . | . . . Terminals . | . . . Fabricators . | . . . Repair Stations . | . . . Recycling Units . | . . . Scanalyzers . | . . . Garrison Access . | . . . Terminal Hacks . | . . . Fabricator Hacks . | . . . Repair Station Hacks . | . . . Recycling Unit Hacks . | . . . Scanalyzer . | . . . Garrison Access Hacks . | . . . Unauthorized Hacks . | . . . Terminals . | . . . Fabricators . | . . . Repair Stations . | . . . Recycling Units . | . . . Scanalyzers . | . . . Garrison Access . | . . . Data Cores Recovered . | . . . Used . | . . . Hacking Detections . | . . . Full Trace Events . | . . . Feedback Events . | . . . Feedback Blocked . | . . . Robot Schematics Acquired . | . . . Robots Built . | . . . Authchips . | . . . Time . | . . . Total Robot Build Rating . | . . . Part Schematics Acquired . | . . . Parts Built . | . . . Authchips . | . . . Time . | . . . Total Part Build Rating . | . . . Part Studies Acquired . | . . . Parts Repaired . | . . . Time . | . . . Parts Recycled . | . . . Recycled Matter . | . . . Retrieved Matter . | . . . Retrieved Components . | . . . Parts Scanalyzed . | . . . Part Schematics Acquired . | . . . Parts Damaged . | . . . Bothacking | -11 -10 -9 ------------ Run | Yrd Mat Mat Used RIF Installer . | . . . Robots Hacked . | . . . Non-combat . | . . . Combat . | . . . Robot Hacks Applied . | . . . Relay Couplers Released . | . . . Fabnet Peak Effective % . | . . . Robots Rewired . | . . . Allies Hacked . | . . . Hacks Repelled . | . . . Allies | -11 -10 -9 -------- Run | Yrd Mat Mat Total Allies . | . . . Largest Group . | . . . Highest-Rated Group . | . . . Highest-Rated Ally . | . . . Total Orders . | . . . Ally Attacks . | . . . Total Damage . | . . . Kills . | . . . Allies Corrupted . | . . . Allies Melted . | . . . Intel | -11 -10 -9 ------- Run | Yrd Mat Mat Active Infowar (turns) . | . . . Robot Analysis Total . | . . . Derelict Logs Recovered . | . . . Drone Launches . | . . . Drone Recoveries . | . . . Exploration | -11 -10 -9 ------------- Run | Yrd Mat Mat Turns Passed 467 | 67 211 189 Spaces Moved 211 | 41 121 49 Core 12 | 7 . 5 Treads 195 | 34 121 40 Legs 4 | . . 4 Wheels . | . . . Hover . | . . . Flight . | . . . Fastest Speed 50 | 50 160 50 Average Speed 162 | 141 160 187 Slowest Speed 500 | 160 160 500 Overloaded Moves . | . . . Propulsion Burnouts . | . . . Robots Hopped . | . . . Potential Cave-ins . | . . . Cave-ins Triggered . | . . . Exploration Rate (%) 17 | 4 41 6 Regions Visited 2 Branch Regions . Pre-discovered Areas . | . . . Known Exits Taken . | . . . Unknown Exits Taken 2 | 1 1 . Scrap Searched . | . . . Spaces Dug . | . . . Terrain Destroyed . | . . . Melee . | . . . Projectile . | . . . AOE . | . . . Terrain Rammed . | . . . Walls Destroyed . | . . . Machines Disabled . | . . . Actions | -11 -10 -9 --------- Run | Yrd Mat Mat Total 288 | 50 131 107 Wait 9 | . . 9 Move 209 | 40 120 49 Hop . | . . . Pick Up 14 | 6 3 5 Fast Attach . | . . . Attach 14 | 4 3 7 Detach . | . . . Swap . | . . . Drop 4 | . 1 3 Fire 33 | . 4 29 Melee . | . . . Ram 2 | . . 2 Kick . | . . . Crush 3 | . . 3 Escape Stasis . | . . . Rewire . | . . . Trap . | . . . Miscellaneous . | . . . Route ------- -11/Scrapyard -10/Materials -9/Materials (discovered 1 exit: [*Sto]) History --------- Turn | Location | Event 5 | -11/Scrapyard | Discovered new exit (range 15) 68 | -11/Scrapyard | Entered Materials 274 | -10/Materials | Discovered new exit (range 3) 279 | -10/Materials | Entered another Materials area 279 | -9/Materials | Evolved 2 slots: Weapon x2 292 | -9/Materials | Discovered new exit (range 15) 310 | -9/Materials | Build established: Mutant 436 | -9/Materials | Core integrity fell below 50% 449 | -9/Materials | Core integrity fell below 20% 468 | -9/Materials | Destroyed by G-47 Trooper with Particle Gun Last Messages --------------- 00426_ System corrupted: Matter fused (-7). 00426_ Lgt. Treads destroyed. 00427_ Slammed into U-05 Engineer. 00427_ Destabilizing: System corrupted (+1). 00428_ ALERT: Construction progress impeded, dispatching reinforcements to local area. 00428_ Y-45 Defender destroyed. 00436_ Critical hit (Burn: +37). 00437_ Acquired Beam Rifle. 00438_ Rnf. Ion Engine destroyed. 00443_ Acquired Aluminum Leg. 00444_ :LR IG#N:0XDWF1EVL:| [Achievement: That Tickles] 00454_ Acquired Ion Engine. 00460_ Beam Rifle destroyed. 00462_ Aluminum Leg destroyed. 00465_ Dropped Core Shielding. 00465_ Dropped Lrg. Storage Unit. 00466_ Dropped Ion Engine. 00467_ Slammed into G-47 Trooper. Map ----- +----------------------------------------------------+ | ??????????###### #??????????????? | | ??????????# == #??????????????? | | ??????????# =! #??????????????? | | ??????????# =! #??????????????? | | ??????????# ##?????????????? | | ??????????# #?????????????? | | ??????????# #?????????????? | | ??????##### #?????????????? | | ??????# #?????????????? | | ??????# ######?????????????? | | ??????# #??????????????????? | | ??????##### #??????????????????? | | ??????????# #??????????????????? | | ??????????# #??????????????????? | | ??????????# #??????????????????? | | ??????????# #??????????????????? | | ??????????# #??????????????????? | | ??????????# #??????????????????? | | ?########## #??????????????????? | | ?# T # #??????????????????? | | ?#| # #??????????????????? | | ?# # ###+########???????? | | ?# =#% ??????? | | ?# ggg%+%% ??????? | | ?# "" g# = ??????? | | ?# """@# ##########+#???????? | | ?# """!# #??????????????????? | | ?# g *# #??????????????????? | | ?########## #??????????????????? | | ??????????# #??????????????????? | | ??????????# ??????????????????? | | ??????????# ##?????????????????? | | ??????????# #??????????????????? | | ??????????# #??????????????????? | | ??????????# #??????????????????? | | ??????????# #??????????????????? | | ??????????# ??????????????????? | | ??????????+ ??????????????????? | | ??????????# ""??????????????????? | | ??????????? ""??????????????????? | | ??????????? ????????????????????? | | ??????????? ????????????????????? | | ?????????????????????????????????? | | ?????????????????????????????????? | | ?????????????????????????????????? | | ?????????????????????????????????? | | ?????????????????????????????????? | | ?????????????????????????????????? | | ?????????????????????????????????? | | ?????????????????????????????????? | +----------------------------------------------------+ Best States ------------- Heat Dissipation 28 Energy Generation 12 Energy Capacity 265 Matter Stores 300 Matter Capacity 300 Sight Range 16 Terrain Scan Density 10 Core Shielding 20 Evasion (%) 40 Recoil Reduction 2 Item Schematics ----------------- None Robot Schematics ------------------ None Fabricated ------------ Nothing Repaired ---------- Nothing Studied --------- None Alien Tech Used ----------------- None Achievements -------------- That Tickles Challenges ------------ None Game ------ Seed GaussRapidCoupler Manual? 0 Play Time 00:04:35 Cumulative 32.9 hours Start 2025.10.30 @ 22:37:07 End 2025.10.30 @ 22:40:04 Sessions 1 Manual Loads 0 Difficulty Rogue Special Mode None Game No. 98 Rogue 98 Adventurer 0 Explorer 0 Win Type - Total 0 Types 0/0/0/0/0/0/0/0/0/0 Lore% 22 Gallery% 26 Achievement% 22 Wizard Run 0 Options --------- Layout 1 ASCII 0 Keyboard 0 Movement Mouse Keybinds 0 Fullscreen 2 Font 24/Smallcaps Map View 50x35 Zoom Use 0% Tactical HUD 1 Map Filters NONE Filters NONE Steam 1 RUN: 2b5663cd-8019-4daf-8d29-23651c135acf